bitfinex-derivatives/quotes_BTCF0:USTF0_20241224
["timestamp","ask_amount","ask_price","bid_price","bid_amount"]
[1735082282500,0.20276211,98850.0,98849.0,0.103]
[1735082283801,0.1024435,98850.0,98849.0,0.103]
[1735082288206,0.28435679,98850.0,98849.0,0.103]
[1735082289001,0.23374179,98850.0,98825.0,0.050627]
[1735082289202,0.411422,98835.0,98824.0,0.050628]
[1735082289502,0.411422,98835.0,98830.0,0.01154436]
[1735082290209,0.411422,98835.0,98834.0,0.0555]
[1735082290415,0.412422,98835.0,98834.0,0.0555]
[1735082290710,0.412422,98835.0,98834.0,0.0495]
[1735082291011,0.4642505,98835.0,98834.0,0.0555]
[1735082293104,0.4632505,98835.0,98834.0,0.0525]
[1735082293912,0.4632505,98835.0,98834.0,0.0505]
[1735082296716,0.412422,98835.0,98834.0,0.0505]
[1735082298008,0.412422,98835.0,98834.0,0.001]
[1735082302206,0.412422,98835.0,98820.0,0.1004]
[1735082302207,0.05063,98821.0,98820.0,0.1004]
[1735082302412,0.41143,98821.0,98820.0,0.1004]
[1735082303520,0.41243,98821.0,98820.0,0.1044]
[1735082308123,0.3618,98821.0,98820.0,0.1044]
[1735082308427,0.15150622,98828.0,98827.0,0.050626]
[1735082308619,0.3608,98835.0,98820.0,0.1044]
[1735082309016,0.3608,98835.0,98834.0,0.050623]
[1735082309220,0.2786,98835.0,98834.0,0.050623]
[1735082309531,0.15149981,98838.0,98826.0,0.3608]
[1735082309722,0.15149981,98838.0,98837.0,0.050621]
[1735082310629,0.050617,98846.0,98827.0,0.29367442]
[1735082310928,0.050617,98846.0,98844.0,0.050618]
[1735082312524,0.051617,98846.0,98844.0,0.051618]
[1735082312725,0.051617,98846.0,98844.0,0.053618]
[1735082314126,0.050617,98846.0,98844.0,0.051618]
[1735082314333,0.051617,98846.0,98844.0,0.053618]
[1735082316921,0.051617,98846.0,98844.0,0.06503985]
[1735082317123,0.050617,98846.0,98844.0,0.06203985]
[1735082317432,0.051617,98846.0,98844.0,0.06403985]
[1735082318133,0.051617,98846.0,98844.0,0.06203985]
[1735082318326,0.051617,98846.0,98844.0,0.06403985]
[1735082318729,0.050617,98846.0,98844.0,0.06403985]
[1735082318927,0.051617,98846.0,98844.0,0.06403985]
[1735082320436,0.051617,98846.0,98844.0,0.06303985]
[1735082321538,0.001,98846.0,98844.0,0.06303985]
[1735082324035,0.001,98846.0,98844.0,0.06203985]
[1735082324227,0.001,98846.0,98844.0,0.06303985]
[1735082325738,0.412057,98847.0,98846.0,0.050617]
[1735082325939,0.411417,98847.0,98846.0,0.050617]
[1735082326729,0.411417,98847.0,98846.0,0.051617]
[1735082326933,0.412417,98847.0,98846.0,0.051617]
[1735082327640,0.412417,98847.0,98846.0,0.050617]
[1735082327833,0.412417,98847.0,98846.0,0.052617]
[1735082328034,0.050625,98831.0,98827.0,0.050627]
[1735082328235,0.050625,98831.0,98828.0,0.01136715]
[1735082328442,0.050625,98831.0,98821.0,0.35117304]
[1735082329545,0.050629,98822.0,98821.0,0.05063]
[1735082330033,0.050632,98817.0,98815.0,0.050633]
[1735082330541,0.050632,98817.0,98815.0,0.06230258]
[1735082332335,0.051632,98817.0,98815.0,0.06230258]
[1735082332951,0.052632,98817.0,98815.0,0.06330258]
[1735082333843,0.002,98817.0,98815.0,0.06330258]
[1735082345745,0.002,98817.0,98816.0,0.050632]
[1735082347554,0.3608,98824.0,98823.0,0.050629]
[1735082349355,0.3618,98824.0,98823.0,0.051629]
[1735082349852,0.3618,98824.0,98823.0,0.053629]
[1735082350555,0.001,98824.0,98823.0,0.053629]
[1735082354363,0.12116114,98840.0,98835.0,0.050623]
[1735082354565,0.12116114,98839.0,98835.0,0.050623]
[1735082354762,0.12116114,98839.0,98838.0,0.050622]
[1735082355978,0.12116114,98842.0,98841.0,0.05062]
[1735082357267,0.050618,98845.0,98844.0,0.050619]
[1735082359369,0.050618,98845.0,98844.0,0.053619]
[1735082359370,0.051618,98845.0,98844.0,0.053619]
[1735082359670,0.051618,98845.0,98844.0,0.004]
[1735082361165,0.10148207,98845.0,98844.0,0.004]
[1735082361778,0.10148207,98845.0,98844.0,0.003]
[1735082362271,0.10048207,98845.0,98844.0,0.001]
[1735082362468,0.10048207,98845.0,98844.0,0.003]
[1735082363581,0.10048207,98845.0,98844.0,0.002]
[1735082363767,0.10148207,98845.0,98844.0,0.002]
[1735082368581,0.050626,98828.0,98827.0,0.18037719]
[1735082368781,0.411426,98828.0,98827.0,0.19109636]
[1735082369774,0.411426,98828.0,98827.0,0.19309636]
[1735082369971,0.411426,98828.0,98827.0,0.01271917]
[1735082370379,0.411426,98828.0,98827.0,0.06334617]
[1735082370579,0.3618,98828.0,98827.0,0.06534617]
[1735082370890,0.001,98828.0,98827.0,0.06534617]
[1735082372584,0.12229328,98828.0,98827.0,0.06534617]
[1735082374189,0.001,98828.0,98827.0,0.06534617]
[1735082385288,0.051627,98828.0,98827.0,0.06534617]
[1735082385484,0.051627,98828.0,98827.0,0.24603188]
[1735082385485,0.17298246,98828.0,98827.0,0.24603188]
[1735082386695,0.051627,98828.0,98827.0,0.06534617]
[1735082390894,0.051627,98828.0,98827.0,0.24603188]
[1735082391494,0.412427,98828.0,98827.0,0.24603188]
[1735082391997,0.412427,98828.0,98827.0,0.06534617]
[1735082393583,0.56404147,98828.0,98827.0,0.06534617]
[1735082393992,0.56404147,98828.0,98827.0,0.06334617]
[1735082394696,0.56304147,98828.0,98827.0,0.06334617]
[1735082394898,0.56404147,98828.0,98827.0,0.06334617]
[1735082395410,0.412427,98828.0,98827.0,0.01271917]
[1735082396695,0.412427,98828.0,98827.0,0.01071917]
[1735082396998,0.412427,98828.0,98827.0,0.001]
[1735082401093,0.46248427,98828.0,98827.0,0.001]
[1735082404702,0.56417634,98828.0,98827.0,0.001]
[1735082408106,0.64438523,98828.0,98827.0,0.001]
[1735082409401,0.46247194,98828.0,98827.0,0.001]
[1735082411106,0.61887194,98828.0,98827.0,0.001]
[1735082412208,0.46247194,98828.0,98827.0,0.001]
[1735082417007,0.6444808,98828.0,98827.0,0.001]
[1735082421008,0.46247194,98828.0,98827.0,0.001]
[1735082434821,0.10167194,98828.0,98827.0,0.001]
[1735082435016,0.82327194,98828.0,98827.0,0.001]
[1735082436829,0.10167194,98828.0,98827.0,0.001]
[1735082437128,0.82327194,98828.0,98827.0,0.001]
[1735082445534,0.46247194,98828.0,98827.0,0.001]
[1735082459921,0.050631,98819.0,98818.0,0.01062539]
[1735082460121,0.050632,98817.0,98816.0,0.18104796]
[1735082460539,0.050632,98817.0,98816.0,0.19175988]
[1735082460834,0.050632,98817.0,98816.0,0.01071192]
[1735082461023,0.050632,98816.0,98815.0,0.23168096]
[1735082461938,0.10067694,98816.0,98815.0,0.23168096]
[1735082462641,0.10567694,98816.0,98815.0,0.23168096]
[1735082462837,0.11167694,98816.0,98815.0,0.23168096]
[1735082463833,0.11167694,98816.0,98815.0,0.24252406]
[1735082465333,0.11167694,98816.0,98815.0,0.19189106]
[1735082469737,0.06104494,98816.0,98815.0,0.24252406]
[1735082469931,0.00056001,98839.0,98833.0,0.050623]
[1735082470238,0.050621,98837.0,98835.0,0.050622]
[1735082471541,0.059621,98837.0,98835.0,0.051622]
[1735082472040,0.068621,98837.0,98835.0,0.051622]
[1735082473427,0.12125481,98836.0,98835.0,0.051622]
[1735082474732,0.12925481,98836.0,98835.0,0.052622]
[1735082474934,0.008,98836.0,98835.0,0.052622]
[1735082475535,0.017,98836.0,98835.0,0.052622]
[1735082477035,0.017,98836.0,98835.0,0.06315644]
[1735082481445,0.009,98836.0,98835.0,0.06115644]
[1735082481636,0.050621,98837.0,98835.0,0.06415644]
[1735082481942,0.14146195,98837.0,98835.0,0.06415644]
[1735082483138,0.001,98836.0,98835.0,0.06415644]
[1735082483843,0.14146195,98837.0,98835.0,0.06415644]
[1735082484049,0.14246195,98837.0,98835.0,0.06415644]
[1735082484342,0.14246195,98837.0,98835.0,0.06115644]
[1735082484536,0.14246195,98837.0,98835.0,0.06415644]
[1735082484736,0.001,98836.0,98835.0,0.06415644]
[1735082485043,0.051622,98836.0,98835.0,0.06415644]
[1735082486335,0.050622,98836.0,98835.0,0.06415644]
[1735082487253,0.051622,98836.0,98835.0,0.06115644]
[1735082487546,0.051622,98836.0,98835.0,0.06415644]
[1735082488447,0.14246295,98836.0,98835.0,0.06415644]
[1735082495055,0.051622,98836.0,98835.0,0.06415644]
[1735082502056,0.050622,98836.0,98835.0,0.06415644]
[1735082502257,0.051622,98836.0,98835.0,0.06415644]
[1735082508858,0.001,98836.0,98835.0,0.06415644]
[1735082511249,0.001,98836.0,98835.0,0.46590488]
[1735082511458,0.001,98836.0,98835.0,0.42495644]
[1735082512757,0.001,98836.0,98835.0,0.62827597]
[1735082513860,0.12140365,98844.0,98843.0,0.050618]
[1735082514452,0.12140365,98844.0,98843.0,0.411418]
[1735082514965,0.12440365,98844.0,98843.0,0.411418]
[1735082515155,0.15161989,98852.0,98843.0,0.411418]
[1735082515355,0.15161989,98852.0,98851.0,0.411414]
[1735082515561,0.15161989,98859.0,98858.0,0.050611]
[1735082517062,0.36140001,98867.0,98858.0,0.18090758]
[1735082517257,0.3608,98867.0,98866.0,0.050607]
[1735082518861,0.3698,98867.0,98866.0,0.051607]
[1735082519064,0.3768,98867.0,98866.0,0.052607]
[1735082520467,0.016,98867.0,98866.0,0.052607]
[1735082533860,0.016,98867.0,98855.0,0.11224911]
[1735082533861,0.050612,98856.0,98855.0,0.11224911]
[1735082534060,0.050612,98856.0,98850.0,0.05735921]
[1735082534061,0.050614,98851.0,98850.0,0.05735921]
[1735082534275,0.050617,98845.0,98844.0,0.3018266]
[1735082535765,0.050619,98842.0,98841.0,0.01032395]
[1735082535966,0.050622,98837.0,98835.0,0.050622]
[1735082537269,0.051622,98837.0,98835.0,0.050622]
[1735082537867,0.051622,98837.0,98835.0,0.06096061]
[1735082538465,0.051622,98837.0,98835.0,0.06396061]
[1735082538869,0.001,98837.0,98835.0,0.06396061]
[1735082539069,0.3608,98842.0,98841.0,0.050619]
[1735082539273,0.15161989,98846.0,98845.0,0.050617]
[1735082539580,0.15161989,98846.0,98837.0,0.3608]
[1735082539581,0.15161989,98849.0,98837.0,0.3608]
[1735082539773,0.15161989,98849.0,98848.0,0.050616]
[1735082541174,0.050613,98854.0,98853.0,0.050613]
[1735082542478,0.3608,98857.0,98856.0,0.050612]
[1735082543580,0.3678,98857.0,98856.0,0.051612]
[1735082543979,0.3728,98857.0,98856.0,0.051612]
[1735082544169,0.012,98857.0,98856.0,0.051612]
[1735082544472,0.15161989,98866.0,98865.0,0.050607]
[1735082545678,0.08151989,98866.0,98865.0,0.051607]
[1735082545978,0.009,98866.0,98865.0,0.051607]
[1735082546791,0.015,98866.0,98865.0,0.052607]
[1735082547479,0.01,98866.0,98865.0,0.051607]
[1735082548380,0.3608,98876.0,98865.0,0.051607]
[1735082548682,0.18170013,98892.0,98890.0,0.050594]
[1735082548885,0.18170013,98893.0,98892.0,0.050593]
[1735082550171,0.19070013,98893.0,98892.0,0.051593]
[1735082550377,0.19670013,98893.0,98892.0,0.052593]
[1735082550574,0.015,98893.0,98892.0,0.052593]
[1735082550782,0.3608,98913.0,98892.0,0.052593]
[1735082550783,0.3608,98913.0,98893.0,0.050592]
[1735082550976,0.3608,98913.0,98911.0,0.050583]
[1735082552384,0.3628,98913.0,98911.0,0.050583]
[1735082553074,0.3668,98913.0,98911.0,0.050583]
[1735082553383,0.3668,98913.0,98911.0,0.051583]
[1735082553776,0.3668,98913.0,98911.0,0.0619816]
[1735082555183,0.3668,98913.0,98911.0,0.0113986]
[1735082555388,0.150983,98912.0,98911.0,0.001]
[1735082555979,1.650983,98912.0,98911.0,0.001]
[1735082557083,0.155983,98912.0,98911.0,0.001]
[1735082560087,0.055583,98912.0,98911.0,0.001]
[1735082565790,0.050585,98909.0,98903.0,0.050588]
[1735082565980,0.050586,98908.0,98903.0,0.050588]
[1735082567887,0.050586,98907.0,98903.0,0.050588]
[1735082568589,0.050586,98907.0,98898.0,0.01024583]
[1735082568790,0.050586,98907.0,98904.0,0.050587]
[1735082568986,0.004,98908.0,98891.0,0.4642]
[1735082569187,0.411383,98913.0,98912.0,0.050583]
[1735082569897,0.3608,98913.0,98912.0,0.050583]
[1735082570191,0.3608,98924.0,98921.0,0.050578]
[1735082570391,0.3608,98924.0,98922.0,0.102778]
[1735082571589,0.416377,98924.0,98922.0,0.102778]
[1735082576599,0.050579,98920.0,98919.0,0.01051768]
[1735082576791,0.3608,98920.0,98911.0,0.1024]
[1735082576990,0.411383,98912.0,98911.0,0.1024]
[1735082577898,0.05059,98898.0,98894.0,0.050592]
[1735082578404,0.05059,98898.0,98895.0,0.050592]
[1735082578898,0.05059,98898.0,98896.0,0.050591]
[1735082579097,0.17171651,98898.0,98896.0,0.050591]
[1735082580092,0.17171651,98898.0,98896.0,0.055591]
[1735082580594,0.05059,98898.0,98896.0,0.055591]
[1735082582005,0.15140813,98900.0,98899.0,0.05059]
[1735082582203,0.07670813,98900.0,98899.0,0.05059]
[1735082582402,0.00200813,98900.0,98899.0,0.05059]
[1735082583106,0.00200813,98900.0,98899.0,0.05359]
[1735082583511,0.12121769,98901.0,98899.0,0.05359]
[1735082583708,0.48201769,98901.0,98899.0,0.05359]
[1735082584797,0.3608,98901.0,98899.0,0.05359]
[1735082585194,0.050589,98900.0,98899.0,0.003]
[1735082586099,0.050589,98900.0,98881.0,0.0483]
[1735082586304,0.050589,98900.0,98878.0,0.0467]
[1735082586305,0.411393,98893.0,98878.0,0.0467]
[1735082586602,0.0506,98879.0,98878.0,0.0467]
[1735082586799,0.4114,98879.0,98878.0,0.0467]
[1735082587199,0.050601,98876.0,98875.0,0.3023466]
[1735082587404,0.050601,98876.0,98875.0,0.3018266]
[1735082587607,0.3608,98879.0,98872.0,0.050603]
[1735082587802,0.050602,98875.0,98872.0,0.050603]
[1735082588812,0.050602,98875.0,98873.0,0.050603]
[1735082590306,0.050602,98875.0,98873.0,0.052603]
[1735082591417,0.050602,98875.0,98873.0,0.061603]
[1735082594302,0.72220001,98879.0,98873.0,0.061603]
[1735082594509,0.10218629,98880.0,98878.0,0.4114]
[1735082594710,0.10218629,98881.0,98880.0,0.050599]
[1735082596313,0.10218629,98881.0,98880.0,0.051599]
[1735082596621,0.05059,98899.0,98880.0,0.051599]
[1735082596920,0.05059,98899.0,98897.0,0.050591]
[1735082598909,0.050594,98892.0,98889.0,0.050594]
[1735082599112,0.050596,98888.0,98886.0,0.050596]
[1735082599414,0.3608,98893.0,98880.0,0.002]
[1735082599607,0.050599,98882.0,98880.0,0.052599]
[1735082600015,0.050599,98882.0,98880.0,0.050599]
[1735082600917,0.050599,98882.0,98880.0,0.051599]
[1735082601721,0.050599,98882.0,98880.0,0.057599]
[1735082606123,0.3608,98885.0,98884.0,0.050597]
[1735082607347,0.3608,98885.0,98884.0,0.055597]
[1735082607938,0.411397,98885.0,98884.0,0.005]
[1735082610136,0.050597,98885.0,98884.0,0.005]
[1735082610337,0.411397,98885.0,98884.0,0.005]
[1735082614452,0.6422982,98885.0,98884.0,0.004]
[1735082614947,0.6422982,98885.0,98867.0,0.050606]
[1735082615246,0.050605,98869.0,98867.0,0.050606]
[1735082616043,0.050605,98869.0,98867.0,0.054606]
[1735082616445,0.050605,98869.0,98867.0,0.063606]
[1735082616743,0.050605,98869.0,98867.0,0.059606]
[1735082616954,0.050605,98869.0,98867.0,0.063606]
[1735082618844,0.3608,98870.0,98867.0,0.063606]
[1735082619047,0.050605,98868.0,98867.0,0.063606]
[1735082619938,0.3608,98870.0,98869.0,0.050605]
[1735082620140,0.411404,98870.0,98869.0,0.050605]
[1735082621142,0.411404,98870.0,98869.0,0.059605]
[1735082621546,0.3608,98870.0,98869.0,0.059605]
[1735082623355,0.050601,98877.0,98869.0,0.062605]
[1735082623544,0.050601,98877.0,98876.0,0.050601]
[1735082625448,0.411401,98877.0,98876.0,0.050601]
[1735082626355,0.411401,98877.0,98876.0,0.057601]
[1735082626654,0.411401,98877.0,98876.0,0.059601]
[1735082629549,0.411401,98877.0,98876.0,0.0679652]
[1735082630155,0.050601,98877.0,98876.0,0.0679652]
[1735082631564,0.411401,98877.0,98876.0,0.0679652]
[1735082632057,0.411401,98877.0,98876.0,0.009]
[1735082632362,0.411401,98877.0,98866.0,0.2410166]
[1735082632363,0.050606,98867.0,98866.0,0.2410166]
[1735082632547,0.050606,98867.0,98865.0,0.2410166]
[1735082632548,0.3608,98867.0,98865.0,0.2410166]
[1735082632753,0.050606,98866.0,98865.0,0.2410166]
[1735082633760,0.050606,98866.0,98865.0,0.2500166]
[1735082634261,0.050606,98866.0,98865.0,0.009]
[1735082634262,0.09981256,98866.0,98865.0,0.009]
[1735082634456,0.09981256,98866.0,98865.0,0.013]
[1735082639866,0.050606,98866.0,98865.0,0.013]
[1735082642067,0.050606,98866.0,98834.0,0.33988]
[1735082642271,0.050615,98850.0,98843.0,0.050618]
[1735082643361,0.3608,98853.0,98852.0,0.050614]
[1735082643657,0.050613,98853.0,98852.0,0.050614]
[1735082643857,0.001,98850.0,98849.0,0.067615]
[1735082644261,0.001,98850.0,98849.0,0.065615]
[1735082645467,0.001,98850.0,98849.0,0.07385942]
[1735082646364,0.050612,98855.0,98849.0,0.01424442]
[1735082646570,0.050612,98855.0,98854.0,0.050613]
[1735082648076,0.051612,98855.0,98854.0,0.050613]
[1735082648462,0.051612,98855.0,98854.0,0.054613]
[1735082649166,0.051612,98855.0,98854.0,0.058613]
[1735082652971,0.001,98855.0,98854.0,0.058613]
[1735082654375,0.09188902,98855.0,98854.0,0.058613]
[1735082656867,0.001,98855.0,98854.0,0.058613]
[1735082657477,0.051612,98855.0,98854.0,0.058613]
[1735082659169,0.17288823,98855.0,98854.0,0.058613]
[1735082660267,0.53368823,98855.0,98854.0,0.008]
[1735082660672,0.412412,98855.0,98854.0,0.008]
[1735082662067,0.4616208,98855.0,98854.0,0.008]
[1735082664075,0.4616208,98855.0,98854.0,0.058613]
[1735082664679,0.4616208,98855.0,98854.0,0.008]
[1735082665079,0.412412,98855.0,98854.0,0.008]
[1735082667573,0.56414791,98855.0,98854.0,0.008]
[1735082668584,0.56414791,98855.0,98854.0,0.058613]
[1735082668781,0.46162139,98855.0,98854.0,0.058613]
[1735082669979,0.412412,98855.0,98854.0,0.058613]
[1735082670175,0.051612,98855.0,98854.0,0.058613]
[1735082673886,0.412412,98855.0,98854.0,0.058613]
[1735082676983,0.412412,98855.0,98854.0,0.24015929]
[1735082678284,0.412412,98855.0,98854.0,0.058613]
[1735082678285,0.46162048,98855.0,98854.0,0.058613]
[1735082679487,0.56416048,98855.0,98854.0,0.058613]
[1735082680394,0.20336048,98855.0,98854.0,0.058613]
[1735082681298,0.56416048,98855.0,98854.0,0.058613]
[1735082682398,0.46162106,98855.0,98854.0,0.058613]
[1735082688291,0.41100906,98855.0,98854.0,0.058613]
[1735082688496,0.05020906,98855.0,98854.0,0.058613]
[1735082689591,0.15178381,98857.0,98855.0,0.050612]
[1735082690797,0.15178381,98857.0,98855.0,0.054612]
[1735082690990,0.12139773,98857.0,98855.0,0.2956286]
[1735082691189,0.12239773,98857.0,98855.0,0.3046286]
[1735082691896,0.001,98857.0,98855.0,0.3046286]
[1735082692796,0.001,98857.0,98856.0,0.0505]
[1735082693988,0.001,98857.0,98856.0,0.0545]
[1735082694700,0.12139773,98858.0,98857.0,0.050611]
[1735082695095,0.12139773,98859.0,98857.0,0.050611]
[1735082696988,0.001,98858.0,98857.0,0.059611]
[1735082697187,0.001,98858.0,98857.0,0.062611]
[1735082697394,0.12239773,98859.0,98857.0,0.062611]
[1735082697795,0.12139773,98859.0,98857.0,0.053611]
[1735082699596,0.12139773,98861.0,98860.0,0.05061]
[1735082700997,0.12239773,98861.0,98860.0,0.42041]
[1735082701801,0.001,98861.0,98860.0,0.42041]
[1735082702004,0.001,98861.0,98860.0,0.42341]
[1735082703210,0.09195531,98861.0,98860.0,0.43259401]
[1735082704010,0.09195531,98861.0,98860.0,0.43359401]
[1735082704204,0.09195531,98861.0,98860.0,0.42459401]
[1735082704205,0.09095531,98861.0,98860.0,0.42459401]
[1735082704510,0.001,98861.0,98860.0,0.43359401]
[1735082704905,0.09095531,98865.0,98860.0,0.42459401]
[1735082705105,0.001,98861.0,98860.0,0.43359401]
[1735082705307,0.001,98861.0,98860.0,0.43259401]
[1735082706008,0.001,98861.0,98860.0,0.42959401]
[1735082706206,0.001,98861.0,98860.0,0.43359401]
[1735082706809,0.001,98861.0,98860.0,0.42959401]
[1735082707007,0.09095531,98869.0,98868.0,0.050606]
[1735082707508,0.050604,98871.0,98868.0,0.050606]
[1735082707715,0.050604,98871.0,98870.0,0.050604]
[1735082709711,0.102404,98871.0,98870.0,0.051604]
[1735082710204,0.0518,98871.0,98870.0,0.056604]
[1735082714014,0.17301062,98871.0,98870.0,0.056604]
[1735082717106,0.0518,98871.0,98870.0,0.056604]
[1735082719116,0.0518,98871.0,98870.0,0.055604]
[1735082719317,0.0518,98871.0,98870.0,0.056604]
[1735082720911,0.0518,98871.0,98870.0,0.23797976]
[1735082721112,0.15178381,98874.0,98870.0,0.23797976]
[1735082721418,0.15178381,98874.0,98873.0,0.050603]
[1735082722409,0.12129206,98874.0,98873.0,0.050603]
[1735082722712,0.12129206,98874.0,98873.0,0.053603]
[1735082724210,0.09095377,98874.0,98873.0,0.053603]
[1735082725612,0.09095377,98875.0,98873.0,0.053603]
[1735082727409,0.12129206,98881.0,98874.0,0.24160324]
[1735082727612,0.12129206,98881.0,98880.0,0.050599]
[1735082728019,0.050602,98876.0,98874.0,0.24160324]
[1735082728212,0.0515,98875.0,98874.0,0.24160324]
[1735082728813,0.0515,98875.0,98873.0,0.003]
[1735082728814,0.050602,98874.0,98873.0,0.003]
[1735082729211,0.050602,98874.0,98873.0,0.007]
[1735082729817,0.0515,98875.0,98874.0,0.005]
[1735082730019,0.0515,98875.0,98874.0,0.006]
[1735082730731,0.0515,98875.0,98874.0,0.001]
[1735082730926,0.102102,98875.0,98874.0,0.001]
[1735082731425,0.15130384,98875.0,98873.0,0.006]
[1735082732232,0.15130384,98875.0,98873.0,0.005]
[1735082732433,0.15130384,98875.0,98874.0,0.001]
[1735082732825,0.102102,98875.0,98874.0,0.005]
[1735082733332,0.102102,98875.0,98874.0,0.001]
[1735082733727,0.102102,98875.0,98873.0,0.001]
[1735082734028,0.102102,98875.0,98874.0,0.004]
[1735082735323,0.102102,98875.0,98874.0,0.005]
[1735082735526,0.102102,98875.0,98874.0,0.001]
[1735082735825,0.04920183,98875.0,98874.0,0.001]
[1735082736231,0.04920183,98875.0,98874.0,0.005]
[1735082737128,0.12124434,98875.0,98874.0,0.005]
[1735082738640,0.12124434,98878.0,98874.0,0.005]
[1735082738837,0.12124434,98878.0,98877.0,0.050601]
[1735082740336,0.12124434,98880.0,98879.0,0.0506]
[1735082742638,0.12124434,98880.0,98879.0,0.0546]
[1735082743235,0.12124434,98880.0,98875.0,0.18119748]
[1735082743236,0.050601,98876.0,98875.0,0.18119748]
[1735082743534,0.411401,98876.0,98875.0,0.18119748]
[1735082743730,0.411401,98876.0,98875.0,0.10339748]
[1735082743933,0.76060173,98876.0,98860.0,0.00151716]
[1735082744127,0.411409,98861.0,98860.0,0.00151716]
[1735082744830,0.050611,98857.0,98856.0,0.24160324]
[1735082745533,0.1001,98860.0,98854.0,0.050612]
[1735082745739,0.050612,98855.0,98854.0,0.050612]
[1735082746733,0.1001,98860.0,98851.0,0.00955023]
[1735082746929,0.001,98855.0,98849.0,0.050615]
[1735082747237,0.050614,98852.0,98849.0,0.050615]
[1735082748242,0.050614,98852.0,98842.0,0.0469]
[1735082748540,0.050614,98852.0,98850.0,0.050615]
[1735082749044,0.050614,98852.0,98851.0,0.009]
[1735082749533,0.051614,98852.0,98850.0,0.050615]
[1735082750239,0.051614,98852.0,98850.0,0.059615]
[1735082750739,0.051614,98852.0,98850.0,0.064615]
[1735082752943,0.12112454,98851.0,98850.0,0.064615]
[1735082754148,0.051614,98852.0,98850.0,0.064615]
[1735082754845,0.051614,98852.0,98850.0,0.062615]
[1735082755545,0.050614,98852.0,98850.0,0.053615]
[1735082755751,0.001,98851.0,98850.0,0.062615]
[1735082756344,0.051614,98852.0,98850.0,0.061615]
[1735082756651,0.1726318,98852.0,98850.0,0.061615]
[1735082758241,0.001,98851.0,98850.0,0.061615]
[1735082758842,0.1726318,98852.0,98850.0,0.061615]
[1735082759542,0.1220178,98851.0,98850.0,0.061615]
[1735082760837,0.1220178,98851.0,98850.0,0.053615]
[1735082761044,0.1210178,98851.0,98850.0,0.061615]
[1735082761247,0.1726318,98852.0,98850.0,0.061615]
[1735082761549,0.001,98851.0,98850.0,0.061615]
[1735082763045,0.001,98851.0,98850.0,0.058615]
[1735082763246,0.001,98851.0,98850.0,0.061615]
[1735082763851,0.3618,98851.0,98850.0,0.058615]
[1735082764056,0.3618,98851.0,98850.0,0.061615]
[1735082765255,0.412414,98851.0,98850.0,0.061615]
[1735082768951,0.051614,98851.0,98850.0,0.061615]
[1735082769262,0.5334318,98851.0,98850.0,0.061615]
[1735082770356,0.412414,98851.0,98850.0,0.061615]
[1735082773455,0.46252937,98851.0,98850.0,0.061615]
[1735082775758,0.41191537,98851.0,98850.0,0.061615]
[1735082776658,0.3618,98851.0,98850.0,0.061615]
[1735082782563,0.51353956,98851.0,98850.0,0.061615]
[1735082784057,0.3618,98851.0,98850.0,0.011]
[1735082784261,0.050618,98843.0,98842.0,0.24160324]
[1735082784448,0.050623,98834.0,98833.0,0.31173599]
[1735082784647,0.411423,98834.0,98833.0,0.3018266]
[1735082785053,0.050625,98831.0,98825.0,0.3978536]
[1735082785263,0.05071854,98831.0,98825.0,0.3983736]
[1735082785451,0.050627,98826.0,98825.0,0.3023466]
[1735082785760,0.411427,98826.0,98825.0,0.3018266]
[1735082786462,0.41101044,98826.0,98816.0,0.050632]
[1735082786661,0.050631,98818.0,98816.0,0.050632]
[1735082787061,0.00011469,98825.0,98812.0,0.05841658]
[1735082787259,0.05074269,98825.0,98824.0,0.050628]
[1735082788465,0.05174269,98825.0,98824.0,0.050628]
[1735082789865,0.05174269,98825.0,98824.0,0.052628]
[1735082791266,0.05174269,98825.0,98824.0,0.002]
[1735082797670,0.00111469,98825.0,98814.0,0.050633]
[1735082797971,0.050633,98815.0,98814.0,0.050633]
[1735082798969,0.050633,98815.0,98814.0,0.054633]
[1735082799269,0.050633,98815.0,98814.0,0.055633]
[1735082799859,0.050633,98815.0,98814.0,0.054633]
[1735082800071,0.051633,98815.0,98814.0,0.055633]
[1735082804172,0.051633,98815.0,98814.0,0.005]
[1735082804470,0.05174769,98815.0,98814.0,0.005]
[1735082806375,0.14247956,98815.0,98814.0,0.005]
[1735082807374,0.05174769,98815.0,98814.0,0.005]
[1735082810469,0.05174769,98815.0,98814.0,0.105]
[1735082811478,0.17272352,98815.0,98814.0,0.105]
[1735082812774,0.05174769,98815.0,98814.0,0.105]
[1735082815279,0.10352101,98815.0,98814.0,0.105]
[1735082816890,0.10352101,98815.0,98814.0,0.155633]
[1735082818881,0.05288801,98815.0,98814.0,0.155633]
[1735082822587,0.10352101,98815.0,98814.0,0.155633]
[1735082825686,0.10352101,98815.0,98814.0,0.105]
[1735082825891,0.05064,98801.0,98800.0,0.10052]
[1735082826092,0.050644,98793.0,98789.0,0.050646]
[1735082826282,0.050644,98793.0,98790.0,0.050645]
[1735082826283,0.41155869,98793.0,98790.0,0.050645]
[1735082827292,0.41155869,98793.0,98779.0,0.4247379]
[1735082827293,0.050649,98784.0,98779.0,0.4247379]
[1735082827491,0.050651,98780.0,98779.0,0.4247379]
[1735082827786,0.050651,98780.0,98779.0,0.00151842]
[1735082827787,0.411451,98780.0,98779.0,0.00151842]
[1735082828292,0.41156569,98780.0,98779.0,0.00151842]
[1735082828682,0.41156569,98780.0,98779.0,0.00551842]
[1735082829094,0.41256569,98780.0,98779.0,0.00551842]
[1735082829494,0.46433901,98780.0,98779.0,0.00551842]
[1735082830500,0.64589633,98780.0,98779.0,0.00551842]
[1735082830884,0.64589633,98780.0,98768.0,9.475e-05]
[1735082830885,0.050656,98769.0,98768.0,9.475e-05]